fUST/lending_fUST_20240216
["ID","MTS","AMOUNT","RATE_DAILY","PERIOD"]
[314180691,1708049441144,-500.0,0.00021917,2]
[314180693,1708049441153,-508.72576636,0.00021917,2]
[314180695,1708049441163,-500.0,0.00021917,2]
[314180697,1708049441173,-151.0,0.00021917,2]
[314180699,1708049441183,-500.0,0.00021917,2]
[314180701,1708049441192,-704.46,0.00021917,2]
[314180703,1708049441201,-553.63,0.00021917,2]
[314180705,1708049441210,-615.23396221,0.00021917,2]
[314180707,1708049441220,-500.0,0.00021917,2]
[314180709,1708049441229,-500.0,0.00021917,2]
[314180711,1708049441238,-500.0,0.00021917,2]
[314180713,1708049441248,-517.69517074,0.00021917,2]
[314180715,1708049441256,-1130.67,0.00021917,2]
[314180717,1708049441266,-500.0,0.00021917,2]
[314180719,1708049441274,-873.01,0.00021917,2]
[314180721,1708049441283,-500.0,0.00021917,2]
[314180723,1708049441292,-500.0,0.00021917,2]
[314180725,1708049441301,-500.0,0.00021917,2]
[314180727,1708049441311,-500.0,0.00021917,2]
[314180729,1708049441319,-500.0,0.00021917,2]
[314180731,1708049441328,-500.0,0.00021917,2]
[314180733,1708049441338,-508.95951997,0.00021917,2]
[314180735,1708049441347,-500.0,0.00021917,2]
[314180737,1708049441356,-500.0,0.00021917,2]
[314180739,1708049441365,-500.0,0.00021917,2]
[314180741,1708049441374,-500.0,0.00021917,2]
[314180743,1708049441384,-270.80136823,0.00021917,2]
[314180745,1708049441393,-500.0,0.00021917,2]
[314180747,1708049441402,-515.70728387,0.00021917,2]
[314180749,1708049441411,-500.0,0.00021917,2]
[314180751,1708049441420,-500.0,0.00021917,2]
[314180753,1708049441429,-500.0,0.00021917,2]
[314180755,1708049441439,-620.89,0.00021917,2]
[314180757,1708049441448,-3393.78,0.00021917,2]
[314180759,1708049441457,-151.0,0.00021917,2]
[314180761,1708049441466,-500.0,0.00021917,2]
[314180763,1708049441475,-500.0,0.00021917,2]
[314180765,1708049441484,-151.0,0.00021917,2]
[314180767,1708049441493,-500.0,0.00021917,2]
[314180769,1708049441503,-151.0,0.00021917,2]
[314180770,1708049441512,-500.0,0.00021917,2]
[314180772,1708049441522,-584.63,0.00021917,2]
[314180774,1708049441531,-500.0,0.00021917,2]
[314180775,1708049441541,-500.0,0.00021917,2]
[314180776,1708049441550,-473.63715315,0.00021917,2]
[314180777,1708049441560,-500.0,0.00021917,2]
[314180778,1708049441569,-596.79,0.00021917,2]
[314180779,1708049441578,-501.12274451,0.00021917,2]
[314180780,1708049441588,-8952.07,0.00021917,2]
[314180781,1708049441598,-507.96591551,0.00021917,2]
[314180782,1708049441608,-591.74948617,0.00021917,2]
[314180783,1708049441617,-500.0,0.00021917,2]
[314180784,1708049441627,-500.0,0.00021917,2]
[314180785,1708049441636,-500.0,0.00021917,2]
[314180786,1708049441646,-500.0,0.00021917,2]
[314180787,1708049441655,-500.0,0.00021917,2]
[314180789,1708049441664,-500.0,0.00021917,2]
[314180791,1708049441673,-500.0,0.00021917,2]
[314180793,1708049441682,-420.86143582,0.00021917,2]
[314180794,1708049441692,-10645.34,0.00021917,2]
[314180797,1708049441701,-555.66084686,0.00021917,2]
[314180799,1708049441711,-506.12104253,0.00021917,2]
[314180800,1708049441721,-500.0,0.00021917,2]
[314180802,1708049441730,-1184.53,0.00021917,2]
[314180804,1708049441740,-500.0,0.00021917,2]
[314180806,1708049441750,-500.0,0.00021917,2]
[314180808,1708049441759,-500.0,0.00021917,2]
[314180810,1708049441768,-2982.91,0.00021917,2]
[314180812,1708049441778,-500.0,0.00021917,2]
[314180814,1708049441787,-3801.09,0.00021917,2]
[314180816,1708049441796,-3594.52,0.00021917,2]
[314180818,1708049441808,-500.0,0.00021917,2]
[314180821,1708049441817,-211.4184876,0.00021917,2]
[314180823,1708049441828,-1000.0,0.00021917,2]
[314180824,1708049441837,-503.91076734,0.00021917,2]
[314180827,1708049441846,-151.0,0.00021917,2]
[314180829,1708049441860,-151.0,0.00021917,2]
[314180831,1708049441869,-500.0,0.00021917,2]
[314180833,1708049441878,-1789.67,0.00021917,2]
[314180835,1708049441889,-500.0,0.00021917,2]
[314180837,1708049441899,-975.81,0.00021917,2]
[314180839,1708049441909,-507.35620357,0.00021917,2]
[314180841,1708049441920,-2053.7,0.00021917,2]
[314180843,1708049441930,-500.0,0.00021917,2]
[314180845,1708049441939,-583.19672719,0.00021917,2]
[314180847,1708049441949,-151.0,0.00021917,2]
[314180849,1708049441960,-2031.86,0.00021917,2]
[314180851,1708049441971,-151.0,0.00021917,2]
[314180853,1708049441980,-500.0,0.00021917,2]
[314180855,1708049441991,-500.0,0.00021917,2]
[314180857,1708049442004,-500.0,0.00021917,2]
[314180859,1708049442018,-151.0,0.00021917,2]
[314180861,1708049442027,-151.0,0.00021917,2]
[314180863,1708049442037,-501.29038326,0.00021917,2]
[314180865,1708049442048,-500.84741683,0.00021917,2]
[314180867,1708049442057,-394.39604446,0.00021917,2]
[314180869,1708049442067,-638.8789708,0.00021917,2]
[314180871,1708049442076,-500.0,0.00021917,2]
[314180873,1708049442085,-500.0,0.00021917,2]
[314180874,1708049442095,-14778.32,0.00021917,2]
[314180876,1708049442106,-500.0,0.00021917,2]
[314180878,1708049442115,-500.0,0.00021917,2]
[314180880,1708049442125,-500.0,0.00021917,2]
[314180882,1708049442135,-1398.39,0.00021917,2]
[314180884,1708049442146,-500.0,0.00021917,2]
[314180886,1708049442155,-501.06411945,0.00021917,2]
[314180889,1708049442165,-500.0,0.00021917,2]
[314180891,1708049442174,-515.69182678,0.00021917,2]
[314180893,1708049442183,-650.126333,0.00021917,2]
[314180895,1708049442192,-650.126333,0.00021917,2]
[314180897,1708049442202,-2711.37,0.00021917,2]
[314180899,1708049442211,-535.78,0.00021917,2]
[314180901,1708049442221,-508.32310486,0.00021917,2]
[314180905,1708049442230,-500.0,0.00021917,2]
[314180907,1708049442239,-500.0,0.00021917,2]
[314180909,1708049442248,-500.0,0.00021917,2]
[314180911,1708049442262,-382.29476803,0.00021917,2]
[314180913,1708049442272,-500.0,0.00021917,2]
[314180915,1708049442282,-3129.45,0.00021917,2]
[314180917,1708049442291,-557.96299986,0.00021917,2]
[314180919,1708049442301,-512.60668403,0.00021917,2]
[314180921,1708049442310,-501.40394287,0.00021917,2]
[314180923,1708049442319,-500.0,0.00021917,2]
[314180926,1708049442329,-549.83252638,0.00021917,2]
[314180928,1708049442338,-509.34342707,0.00021917,2]
[314180930,1708049442347,-500.0,0.00021917,2]
[314180932,1708049442357,-500.0,0.00021917,2]
[314180934,1708049442366,-340.8385,0.00021917,2]
[314180935,1708049442375,-340.8385,0.00021917,2]
[314180944,1708049442446,-500.0,0.00021917,2]
[314180946,1708049442456,-500.0,0.00021917,2]
[314180948,1708049442467,-500.0,0.00021917,2]
[314180950,1708049442478,-502.73129626,0.00021917,2]
[314180952,1708049442489,-500.0,0.00021917,2]
[314180954,1708049442498,-500.0,0.00021917,2]
[314180956,1708049442512,-20205.48,0.00021917,2]
[314180958,1708049442521,-500.0,0.00021917,2]
[314180960,1708049442530,-506.88868982,0.00021917,2]
[314180962,1708049442539,-500.0,0.00021917,2]
[314180964,1708049442548,-508.76976658,0.00021917,2]
[314180966,1708049442558,-437.80711295,0.00021917,2]
[314180968,1708049442568,-889.15,0.00021917,2]
[314180970,1708049442576,-500.0,0.00021917,2]
[314180972,1708049442586,-500.0,0.00021917,2]
[314180974,1708049442595,-268.76906187,0.00021917,2]
[314180976,1708049442604,-500.0,0.00021917,2]
[314180978,1708049442613,-504.51517556,0.00021917,2]
[314180980,1708049442623,-1386.06,0.00021917,2]
[314180982,1708049442637,-500.0,0.00021917,2]
[314180984,1708049442647,-2717.2,0.00021917,2]
[314180985,1708049442657,-500.0,0.00021917,2]
[314180987,1708049442666,-818.85,0.00021917,2]
[314180990,1708049442675,-818.85,0.00021917,2]
[314180991,1708049442685,-818.85,0.00021917,2]
[314180993,1708049442694,-818.85,0.00021917,2]
[314180995,1708049442703,-672.54,0.00021917,2]
[314180997,1708049442712,-818.85,0.00021917,2]
[314180999,1708049442722,-818.85,0.00021917,2]
[314181001,1708049442731,-818.85,0.00021917,2]
[314181003,1708049442741,-818.85,0.00021917,2]
[314181006,1708049442753,-818.85,0.00021917,2]
[314181008,1708049442763,-818.85,0.00021917,2]
[314181009,1708049442773,-818.85,0.00021917,2]
[314181011,1708049442782,-818.85,0.00021917,2]
[314181014,1708049442792,-818.85,0.00021917,2]
[314181016,1708049442803,-818.85,0.00021917,2]
[314181019,1708049442812,-328.59593797,0.00021917,2]
[314181022,1708049442822,-507.25131072,0.00021917,2]
[314181024,1708049442832,-500.0,0.00021917,2]
[314181025,1708049442842,-15722.19,0.00021917,2]
[314181028,1708049442852,-500.0,0.00021917,2]
[314181030,1708049442862,-500.0,0.00021917,2]
[314181032,1708049442872,-500.0,0.00021917,2]
[314181034,1708049442882,-500.0,0.00021917,2]
[314181035,1708049442892,-500.0,0.00021917,2]
[314181037,1708049442902,-500.0,0.00021917,2]
[314181040,1708049442912,-500.0,0.00021917,2]
[314181041,1708049442921,-500.0,0.00021917,2]
[314181043,1708049442930,-500.0,0.00021917,2]
[314181045,1708049442939,-500.0,0.00021917,2]
[314181047,1708049442948,-500.0,0.00021917,2]
[314181050,1708049442958,-611.86423718,0.00021917,2]
[314181051,1708049442967,-503.34170869,0.00021917,2]
[314181053,1708049442978,-500.0,0.00021917,2]
[314181055,1708049442988,-316.26996827,0.00021917,2]
[314181057,1708049442996,-502.31398277,0.00021917,2]
[314181059,1708049443008,-500.0,0.00021917,2]
[314181062,1708049443021,-5918.06,0.00021917,2]
[314181064,1708049443030,-500.0,0.00021917,2]
[314181066,1708049443040,-500.0,0.00021917,2]
[314181067,1708049443049,-15826.69,0.00021917,2]
[314181070,1708049443059,-3906.43,0.00021917,2]
[314181071,1708049443068,-500.0,0.00021917,2]
[314181074,1708049443077,-2295.72,0.00021917,2]
[314181076,1708049443087,-519.60061657,0.00021917,2]
[314181077,1708049443097,-23558.59,0.00021917,2]
[314181080,1708049443106,-500.0,0.00021917,2]
[314181081,1708049443115,-511.1514033,0.00021917,2]
[314181084,1708049443125,-519.8639491,0.00021917,2]
[314181085,1708049443134,-500.0,0.00021917,2]
[314181087,1708049443143,-2156.78,0.00021917,2]
[314181089,1708049443152,-503.85918566,0.00021917,2]
[314181091,1708049443161,-500.0,0.00021917,2]
[314181093,1708049443171,-759.84,0.00021917,2]
[314181095,1708049443180,-500.0,0.00021917,2]
[314181097,1708049443189,-404.26185862,0.00021917,2]
[314181099,1708049443198,-151.0,0.00021917,2]
[314181101,1708049443207,-165.011518,0.00021917,2]
[314181104,1708049443217,-500.0,0.00021917,2]
[314181106,1708049443226,-551.55464271,0.00021917,2]
[314181107,1708049443235,-500.0,0.00021917,2]
[314181110,1708049443245,-500.0,0.00021917,2]
[314181112,1708049443256,-500.0,0.00021917,2]
[314181114,1708049443265,-3424.16,0.00021917,2]
[314181116,1708049443274,-1713.59,0.00021917,2]
[314181118,1708049443283,-500.0,0.00021917,2]
[314181120,1708049443292,-500.0,0.00021917,2]
[314181122,1708049443301,-322.317135,0.00021977,2]
[314181124,1708049443311,-627.4034901,0.00022,2]
[314181126,1708049443321,-800.74161935,0.00022,2]
[314181127,1708049443330,-205.26,0.00022025,2]
[314181129,1708049443342,-1000.0,0.00022052,2]
[314181131,1708049443351,-500.0,0.00022077,2]
[314181134,1708049443361,-500.0,0.00022077,2]
[314181135,1708049443371,-420.18173713,0.00022077,2]
[314181137,1708049443380,-646.14066798,0.0002208,2]
[314181140,1708049443390,-1030.32949512,0.000221,2]
[314181142,1708049443399,-150.434139,0.000221,2]
[314181143,1708049443409,-1000.0,0.00022148,2]
[314181145,1708049443419,-1000.0,0.00022149,2]
[314181147,1708049443429,-818.85,0.00022149,2]
[314181149,1708049443438,-818.85,0.00022149,2]
[314181151,1708049443449,-818.85,0.00022149,2]
[314181153,1708049443459,-818.85,0.00022149,2]
[314181155,1708049443469,-50000.0,0.0002215,2]
[314181157,1708049443480,-80854.4759733,0.0002215,2]
[314181159,1708049443489,-5000.0,0.0002215,2]
[314181161,1708049443499,-4236.1626043,0.0002215,2]
[314181163,1708049443512,-151.0,0.0002215,2]
[314181165,1708049443521,-287.704238,0.0002215,2]
[314181167,1708049443531,-151.0,0.0002215,2]
[314181170,1708049443540,-165.091449,0.0002215,2]
[314181171,1708049443550,-5142.87203038,0.0002215,2]
[314181173,1708049443560,-151.0,0.0002215,2]
[314181175,1708049443569,-151.0,0.0002215,2]
[314181177,1708049443578,-151.0,0.0002215,2]
[314181179,1708049443587,-151.0,0.0002215,2]
[314181181,1708049443596,-151.0,0.0002215,2]
[314181183,1708049443605,-151.0,0.0002215,2]
[314181186,1708049443614,-151.0,0.0002215,2]
[314181187,1708049443623,-151.0,0.0002215,2]
[314181190,1708049443633,-5000.0,0.0002215,2]
[314181192,1708049443642,-151.0,0.0002215,2]
[314181193,1708049443652,-151.0,0.0002215,2]
[314181202,1708049443717,-151.0,0.0002215,2]
[314181204,1708049443727,-151.427702,0.0002215,2]
[314181206,1708049443736,-650.126333,0.0002215,2]
[314181208,1708049443746,-650.126333,0.0002215,2]
[314181210,1708049443759,-650.126333,0.0002215,2]
[314181212,1708049443770,-650.126333,0.0002215,2]
[314181214,1708049443780,-5000.0,0.0002215,2]
[314181216,1708049443791,-340.8385,0.0002215,2]
[314181218,1708049443801,-340.8385,0.0002215,2]
[314181220,1708049443810,-340.8385,0.0002215,2]
[314181223,1708049443824,-340.8385,0.0002215,2]
[314181225,1708049443833,-7831.70778109,0.0002215,2]
[314181227,1708049443843,-818.85,0.00022163,2]
[314181229,1708049443854,-32596.51343658,0.00022164,2]
[314181231,1708049443862,-151.0,0.00022164,2]
[314181233,1708049443871,-151.0,0.00022164,2]
[314181235,1708049443881,-1000.0,0.00022164,2]
[314181237,1708049443890,-818.85,0.00022168,2]
[314181239,1708049443898,-818.85,0.00022168,2]
[314181241,1708049443907,-818.85,0.00022168,2]
[314181243,1708049443917,-818.85,0.00022168,2]
[314181245,1708049443926,-818.96341077,0.00022168,2]
[314181247,1708049443935,-50000.0,0.00022169,2]
[314181249,1708049443944,-50000.0,0.00022169,2]
[314181250,1708049443953,-151.0,0.00022169,2]
[314181252,1708049443962,-151.0,0.00022169,2]
[314181254,1708049443972,-151.0,0.00022169,2]
[314181257,1708049443983,-151.0,0.00022169,2]
[314181258,1708049443992,-155.92898,0.00022169,2]
[314181260,1708049444002,-151.0,0.00022169,2]
[314181262,1708049444015,-151.0,0.00022169,2]
[314181265,1708049444024,-650.126333,0.00022169,2]
[314181266,1708049444034,-650.126333,0.00022169,2]
[314181268,1708049444043,-340.8385,0.00022169,2]
[314181270,1708049444052,-340.8385,0.00022169,2]
[314181272,1708049444061,-500.0,0.00022172,2]
[314181274,1708049444070,-500.0,0.00022172,2]
[314181276,1708049444079,-475.08423566,0.00022172,2]
[314181278,1708049444089,-500.0,0.00022172,2]
[314181281,1708049444098,-197.40112192,0.00022172,2]
[314181283,1708049444107,-500.0,0.00022172,2]
[314181284,1708049444117,-500.0,0.00022172,2]
[314181287,1708049444127,-500.0,0.00022172,2]
[314181288,1708049444136,-500.0,0.00022172,2]
[314181290,1708049444146,-500.0,0.00022172,2]
[314181293,1708049444157,-500.0,0.00022172,2]
[314181294,1708049444167,-500.0,0.00022172,2]
[314181296,1708049444176,-500.0,0.00022172,2]
[314181298,1708049444186,-500.0,0.00022172,2]
[314181300,1708049444195,-500.0,0.00022172,2]
[314181303,1708049444205,-180.09465056,0.00022172,2]
[314181304,1708049444214,-500.0,0.00022172,2]
[314181306,1708049444223,-250.0,0.00022172,2]
[314181308,1708049444232,-439.46265098,0.00022172,2]
[314181310,1708049444242,-500.0,0.00022172,2]
[314181312,1708049444252,-650.0,0.00022172,2]
[314181314,1708049444263,-500.0,0.00022172,2]
[314181316,1708049444273,-500.0,0.00022172,2]
[314181318,1708049444282,-500.0,0.00022172,2]
[314181320,1708049444292,-248.02375154,0.00022172,2]
[314181323,1708049444301,-500.0,0.00022172,2]
[314181325,1708049444310,-500.0,0.00022172,2]
[314181327,1708049444320,-551.06275177,0.00022172,2]
[314181329,1708049444330,-500.0,0.00022172,2]
[314181331,1708049444339,-500.0,0.00022172,2]
[314181332,1708049444348,-500.0,0.00022172,2]
[314181335,1708049444359,-500.0,0.00022172,2]
[314181336,1708049444368,-500.0,0.00022172,2]
[314181338,1708049444377,-50000.0,0.00022173,2]
[314181341,1708049444387,-50000.0,0.00022173,2]
[314181342,1708049444396,-151.0,0.00022173,2]
[314181345,1708049444405,-151.0,0.00022173,2]
[314181347,1708049444415,-151.0,0.00022173,2]
[314181348,1708049444425,-151.0,0.00022173,2]
[314181350,1708049444434,-1000.0,0.00022173,2]
[314181352,1708049444443,-151.0,0.00022173,2]
[314181354,1708049444452,-151.0,0.00022173,2]
[314181356,1708049444462,-650.126333,0.00022173,2]
[314181359,1708049444471,-650.126333,0.00022173,2]
[314181360,1708049444481,-340.8385,0.00022173,2]
[314181363,1708049444490,-340.8385,0.00022173,2]
[314181364,1708049444499,-1000.0,0.00022189,2]
[314181367,1708049444513,-500.0,0.00022191,2]
[314181369,1708049444523,-500.0,0.00022191,2]
[314181371,1708049444533,-500.0,0.00022191,2]
[314181373,1708049444542,-500.0,0.00022191,2]
[314181374,1708049444551,-500.0,0.00022191,2]
[314181376,1708049444561,-682.18,0.00022191,2]
[314181379,1708049444570,-523.37596153,0.00022191,2]
[314181380,1708049444581,-500.0,0.00022191,2]
[314181382,1708049444590,-500.0,0.00022191,2]
[314181384,1708049444598,-500.0,0.00022191,2]
[314181386,1708049444607,-500.0,0.00022191,2]
[314181388,1708049444616,-500.0,0.00022191,2]
[314181390,1708049444625,-500.0,0.00022191,2]
[314181392,1708049444635,-407.65193188,0.00022191,2]
[314181394,1708049444644,-697.46,0.00022191,2]
[314181396,1708049444653,-780.7,0.00022191,2]
[314181398,1708049444663,-500.0,0.00022191,2]
[314181400,1708049444673,-500.0,0.00022191,2]
[314181402,1708049444682,-500.0,0.00022191,2]
[314181404,1708049444691,-399.10065543,0.00022191,2]
[314181406,1708049444700,-500.0,0.00022191,2]
[314181408,1708049444709,-500.0,0.00022191,2]
[314181410,1708049444718,-500.0,0.00022191,2]
[314181412,1708049444727,-532.21644165,0.00022191,2]
[314181415,1708049444737,-500.0,0.00022191,2]
[314181417,1708049444746,-500.0,0.00022191,2]
[314181418,1708049444756,-399.20187074,0.00022191,2]
[314181421,1708049444766,-500.0,0.00022191,2]
[314181423,1708049444776,-500.0,0.00022191,2]
[314181425,1708049444784,-500.0,0.00022191,2]
[314181427,1708049444794,-500.0,0.00022191,2]
[314181428,1708049444803,-500.0,0.00022191,2]
[314181430,1708049444812,-500.0,0.00022191,2]
[314181438,1708049444874,-500.0,0.00022191,2]
[314181440,1708049444884,-935.64,0.00022191,2]
[314181442,1708049444893,-500.0,0.00022191,2]
[314181444,1708049444902,-1330.17,0.00022191,2]
[314181446,1708049444911,-500.0,0.00022191,2]
[314181448,1708049444920,-546.30463068,0.00022191,2]
[314181450,1708049444930,-500.0,0.00022191,2]
[314181452,1708049444939,-500.0,0.00022191,2]
[314181454,1708049444948,-500.0,0.00022191,2]
[314181456,1708049444957,-526.43232065,0.00022191,2]
[314181458,1708049444966,-550.11305297,0.00022191,2]
[314181460,1708049444978,-500.0,0.00022191,2]
[314181462,1708049444988,-380.66377346,0.00022191,2]
[314181464,1708049444997,-504.08789225,0.00022191,2]
[314181466,1708049445007,-500.0,0.00022191,2]
[314181468,1708049445018,-500.0,0.00022191,2]
[314181469,1708049445028,-1846.93,0.00022191,2]
[314181470,1708049445037,-500.0,0.00022191,2]
[314181471,1708049445047,-448.06533689,0.00022191,2]
[314181472,1708049445056,-500.0,0.00022191,2]
[314181473,1708049445065,-524.06133915,0.00022191,2]
[314181474,1708049445074,-500.0,0.00022191,2]
[314181475,1708049445083,-295.08268709,0.00022191,2]
[314181476,1708049445093,-500.0,0.00022191,2]
[314181477,1708049445102,-500.0,0.00022191,2]
[314181478,1708049445111,-500.0,0.00022191,2]
[314181479,1708049445121,-524.22,0.00022191,2]
[314181480,1708049445131,-500.0,0.00022191,2]
[314181481,1708049445140,-510.54299301,0.00022191,2]
[314181483,1708049445150,-242.59827523,0.00022191,2]
[314181485,1708049445159,-500.0,0.00022191,2]
[314181487,1708049445170,-500.0,0.00022191,2]
[314181489,1708049445180,-521.12077044,0.00022191,2]
[314181491,1708049445190,-500.0,0.00022191,2]
[314181493,1708049445200,-500.0,0.00022191,2]
[314181495,1708049445211,-500.0,0.00022191,2]
[314181497,1708049445221,-157.5695104,0.00022191,2]
[314181500,1708049445233,-1332.28,0.00022191,2]
[314181501,1708049445242,-500.0,0.00022191,2]
[314181504,1708049445253,-500.0,0.00022191,2]
[314181506,1708049445264,-500.0,0.00022191,2]
[314181508,1708049445274,-503.98010359,0.00022191,2]
[314181510,1708049445284,-507.30787969,0.00022191,2]
[314181511,1708049445294,-500.0,0.00022191,2]
[314181513,1708049445304,-151.0,0.00022191,2]
[314181517,1708049445313,-151.0,0.00022191,2]
[314181519,1708049445323,-151.0,0.00022191,2]
[314181522,1708049445332,-1826.5,0.00022191,2]
[314181525,1708049445342,-500.0,0.00022191,2]
[314181528,1708049445351,-500.0,0.00022191,2]
[314181531,1708049445360,-500.0,0.00022191,2]
[314181534,1708049445369,-500.0,0.00022191,2]
[314181537,1708049445378,-500.0,0.00022191,2]
[314181540,1708049445388,-500.0,0.00022191,2]
[314181543,1708049445397,-500.0,0.00022191,2]
[314181546,1708049445406,-726.4,0.00022191,2]
[314181549,1708049445415,-579.02644395,0.00022191,2]
[314181552,1708049445424,-500.0,0.00022191,2]
[314181554,1708049445433,-500.0,0.00022191,2]
[314181556,1708049445443,-500.0,0.00022191,2]
[314181558,1708049445452,-500.0,0.00022191,2]
[314181560,1708049445462,-500.0,0.00022191,2]
[314181562,1708049445471,-500.0,0.00022191,2]
[314181564,1708049445481,-511.27733365,0.00022191,2]
[314181566,1708049445490,-552.01,0.00022191,2]
[314181568,1708049445500,-507.15533685,0.00022191,2]
[314181570,1708049445511,-500.0,0.00022191,2]
[314181572,1708049445521,-500.0,0.00022191,2]
[314181574,1708049445530,-500.0,0.00022191,2]
[314181576,1708049445540,-500.0,0.00022191,2]
[314181578,1708049445549,-201.40820787,0.00022191,2]
[314181580,1708049445558,-892.39,0.00022191,2]
[314181582,1708049445567,-500.0,0.00022191,2]
[314181584,1708049445577,-500.0,0.00022191,2]
[314181586,1708049445586,-500.0,0.00022191,2]
[314181588,1708049445595,-520.2168439,0.00022191,2]
[314181590,1708049445605,-500.0,0.00022191,2]
[314181592,1708049445614,-1000.0,0.00022191,5]
[314181594,1708049445624,-500.0,0.00022191,2]
[314181596,1708049445633,-500.0,0.00022191,2]
[314181598,1708049445643,-500.0,0.00022191,2]
[314181600,1708049445652,-2047.38,0.00022191,2]
[314181602,1708049445661,-500.0,0.00022191,2]
[314181604,1708049445670,-500.0,0.00022191,2]
[314181606,1708049445680,-1717.82,0.00022191,2]
[314181608,1708049445688,-500.0,0.00022191,2]
[314181610,1708049445697,-500.0,0.00022191,2]
[314181612,1708049445706,-500.0,0.00022191,2]
[314181614,1708049445715,-500.0,0.00022191,2]
[314181616,1708049445730,-500.0,0.00022191,2]
[314181619,1708049445739,-500.0,0.00022191,2]
[314181620,1708049445748,-533.35505871,0.00022191,2]
[314181622,1708049445758,-500.0,0.00022191,2]
[314181624,1708049445767,-500.0,0.00022191,2]
[314181626,1708049445776,-151.0,0.00022191,2]
[314181628,1708049445785,-151.0,0.00022191,2]
[314181630,1708049445794,-500.0,0.00022191,2]
[314181632,1708049445802,-151.0,0.00022191,2]
[314181634,1708049445812,-515.82899828,0.00022191,2]
[314181636,1708049445821,-704.46,0.00022191,2]
[314181638,1708049445830,-553.63,0.00022191,2]
[314181640,1708049445839,-561.03161099,0.00022191,2]
[314181642,1708049445848,-522.88867339,0.00022191,2]
[314181645,1708049445857,-500.0,0.00022191,2]
[314181646,1708049445866,-1130.67,0.00022191,2]
[314181649,1708049445875,-424.74241296,0.00022191,2]
[314181656,1708049445936,-873.01,0.00022191,2]
[314181658,1708049445946,-500.0,0.00022191,2]
[314181660,1708049445955,-500.0,0.00022191,2]
[314181662,1708049445964,-500.0,0.00022191,2]
[314181664,1708049445975,-500.0,0.00022191,2]
[314181666,1708049445984,-492.96707558,0.00022191,2]
[314181668,1708049445993,-500.0,0.00022191,2]
[314181670,1708049446004,-500.0,0.00022191,2]
[314181672,1708049446015,-548.53971377,0.00022191,2]
[314181674,1708049446023,-495.88183261,0.00022191,2]
[314181676,1708049446032,-500.0,0.00022191,2]
[314181678,1708049446042,-432.38477722,0.00022191,2]
[314181680,1708049446051,-500.0,0.00022191,2]
[314181682,1708049446061,-500.0,0.00022191,2]
[314181684,1708049446069,-500.0,0.00022191,2]
[314181686,1708049446079,-620.89,0.00022191,2]
[314181688,1708049446089,-3393.78,0.00022191,2]
[314181690,1708049446099,-151.0,0.00022191,2]
[314181692,1708049446108,-151.0,0.00022191,2]
[314181694,1708049446117,-519.16218951,0.00022191,2]
[314181696,1708049446127,-500.0,0.00022191,2]
[314181698,1708049446136,-241.669791,0.00022191,2]
[314181700,1708049446145,-214.24785388,0.00022191,2]
[314181702,1708049446154,-500.0,0.00022191,2]
[314181705,1708049446163,-584.63,0.00022191,2]